fUSD/lending_fUSD_20240122
["ID","MTS","AMOUNT","RATE_DAILY","PERIOD"]
[312531397,1705944642432,-305.23,0.00027397,2]
[312531398,1705944642441,-504.98,0.00027397,2]
[312531399,1705944642451,-153.96,0.00027397,2]
[312531400,1705944642460,-6533.69,0.00027397,2]
[312531401,1705944642469,-153.88,0.00027397,2]
[312531402,1705944642478,-6533.69,0.00027556,2]
[312531403,1705944642490,-1455.84,0.00027601,2]
[312531404,1705944642499,-6533.69,0.00027714,2]
[312531405,1705944642509,-305.23,0.00027758,2]
[312531406,1705944642518,-504.98,0.00027758,2]
[312531407,1705944642529,-6533.69,0.00027872,2]
[312531408,1705944642539,-163.88,0.00027929,2]
[312531409,1705944642548,-150.0,0.00027945,2]
[312531410,1705944642558,-689.05942203,0.00028,2]
[312531411,1705944642569,-6533.69,0.0002803,2]
[312531412,1705944642578,-214.2,0.00028114,2]
[312531413,1705944642588,-305.23,0.00028118,2]
[312531414,1705944642598,-504.98,0.00028118,2]
[312531415,1705944642607,-6533.69,0.00028189,2]
[312531416,1705944642616,-153.37666056,0.00028317,2]
[312531417,1705944642626,-6533.69,0.00028347,2]
[312531418,1705944642636,-6023.92144727,0.00028479,6]
[312531419,1705944642645,-305.23,0.00028479,2]
[312531420,1705944642655,-504.98,0.00028479,2]
[312531421,1705944642665,-150.0,0.00028493,2]
[312531422,1705944642674,-6533.69,0.00028505,2]
[312531423,1705944642684,-6533.69,0.00028664,2]
[312531424,1705944642694,-155.0,0.00028767,2]
[312531425,1705944642703,-6533.69,0.00028822,2]
[312531426,1705944642713,-305.23,0.00028839,2]
[312531427,1705944642722,-504.98,0.00028839,2]
[312531428,1705944642733,-629.13,0.00028897,2]
[312531429,1705944642743,-378.80728233,0.00029,2]
[312531430,1705944642752,-450.0,0.00029,3]
[312531431,1705944642762,-150.0,0.00029041,2]
[312531432,1705944642771,-305.23,0.000292,2]
[312531434,1705944642781,-504.98,0.000292,2]
[312531435,1705944642791,-1455.84,0.00029244,2]
[312531437,1705944642800,-333.22,0.00029334,2]
[312531439,1705944642809,-155.64874459,0.000295,3]
[312531441,1705944642819,-305.23,0.0002956,2]
[312531443,1705944642828,-504.98,0.0002956,2]
[312531445,1705944642838,-150.0,0.00029589,2]
[312531447,1705944642847,-175.56419383,0.000298,2]
[312531448,1705944642857,-731.13762758,0.000298,2]
[312531450,1705944642867,-305.23,0.00029921,2]
[312531452,1705944642876,-504.98,0.00029921,2]
[312531453,1705944642887,-9443.431527,0.00029999,2]
[312531454,1705944642897,-905.41355492,0.0003,4]
[312531456,1705944642907,-8839.75155897,0.0003,4]
[312531458,1705944642917,-6860.89000775,0.0003,4]
[312531460,1705944642926,-200.0,0.0003,4]
[312531462,1705944642936,-19026.01005334,0.0003,4]
[312531463,1705944642945,-72920.57629857,0.0003,4]
[312531465,1705944642955,-814.18421461,0.0003,4]
[312531468,1705944642964,-1807.84533026,0.0003,4]
[312531470,1705944642974,-155.0,0.0003,2]
[312531472,1705944642985,-706.0792161,0.0003,2]
[312531473,1705944642994,-168.36696466,0.0003,2]
[312531474,1705944643004,-9641.46795832,0.0003,2]
[312531475,1705944643013,-192.24957213,0.0003,2]
[312531476,1705944643024,-18051.40918937,0.0003,4]
[312531477,1705944643033,-234289.1914172,0.0003,2]
[312531478,1705944643043,-173.06946083,0.0003,4]
[312531480,1705944643052,-5623.05876082,0.0003,2]
[312531482,1705944643062,-3000.0,0.0003,2]
[312531484,1705944643071,-3000.0,0.0003,2]
[312531486,1705944643080,-3000.0,0.0003,2]
[312531488,1705944643090,-3000.0,0.0003,2]
[312531489,1705944643099,-3000.0,0.0003,2]
[312531490,1705944643109,-3000.0,0.0003,2]
[312531491,1705944643118,-50057.452738,0.0003,2]
[312531492,1705944643128,-16529.0,0.00030119,2]
[312531493,1705944643137,-13568.39,0.00030137,2]
[312531494,1705944643147,-153.84,0.00030137,2]
[312531495,1705944643156,-150.0,0.00030137,2]
[312531496,1705944643165,-155.0,0.00030137,2]
[312531497,1705944643174,-305.23,0.00030281,2]
[312531498,1705944643184,-504.98,0.00030281,2]
[312531499,1705944643193,-214.2,0.00030378,2]
[312531500,1705944643202,-305.23,0.00030642,2]
[312531501,1705944643213,-504.98,0.00030642,2]
[312531502,1705944643223,-150.0,0.00030685,2]
[312531503,1705944643238,-1885.14172653,0.00031,10]
[312531504,1705944643248,-1610.53389919,0.00031,7]
[312531505,1705944643259,-500.0,0.00031,3]
[312531506,1705944643268,-305.23,0.00031002,2]
[312531507,1705944643278,-504.98,0.00031002,2]
[312531508,1705944643288,-153.84,0.0003105,2]
[312531509,1705944643297,-153.37666056,0.00031074,2]
[312531510,1705944643307,-150.0,0.00031233,2]
[312531511,1705944643317,-305.23,0.00031363,2]
[312531512,1705944643326,-504.98,0.00031363,2]
[312531513,1705944643336,-4864.39214961,0.0003143,4]
[312531514,1705944643345,-683.75,0.00031507,2]
[312531515,1705944643354,-155.0,0.00031507,2]
[312531516,1705944643364,-629.13,0.00031524,2]
[312531517,1705944643374,-295.91,0.00031644,2]
[312531518,1705944643383,-305.23,0.00031723,2]
[312531519,1705944643392,-504.98,0.00031723,2]
[312531520,1705944643401,-163.1747517,0.00031781,2]
[312531521,1705944643411,-153.84,0.00031963,2]
[312531522,1705944643420,-147146.06209676,0.00032,4]
[312531523,1705944643429,-383.16150816,0.00032,4]
[312531524,1705944643441,-20023.3549291,0.00032,5]
[312531525,1705944643451,-8026.8532789,0.00032,5]
[312531526,1705944643460,-6927.12999085,0.00032,5]
[312531527,1705944643469,-20023.29597327,0.00032,5]
[312531528,1705944643479,-6927.47807845,0.00032,5]
[312531529,1705944643490,-6849.96160132,0.00032,5]
[312531530,1705944643498,-305.23,0.00032084,2]
[312531531,1705944643507,-504.98,0.00032084,2]
[312531532,1705944643516,-305.23,0.00032444,2]
[312531533,1705944643525,-504.98,0.00032444,2]
[312531534,1705944643536,-214.2,0.00032642,2]
[312531535,1705944643545,-150.0,0.00032804,2]
[312531536,1705944643555,-150.0,0.00032804,2]
[312531537,1705944643564,-305.23,0.00032805,2]
[312531538,1705944643574,-504.98,0.00032805,2]
[312531539,1705944643583,-162.0,0.00032827,2]
[312531540,1705944643592,-293.21338485,0.00032876,2]
[312531541,1705944643602,-153.84,0.00032877,2]
[312531542,1705944643611,-473.12,0.00032877,15]
[312531543,1705944643621,-55255.08,0.00032877,2]
[312531544,1705944643630,-515.54,0.00032877,2]
[312531545,1705944643639,-37072.17,0.00032877,2]
[312531546,1705944643649,-316.52,0.00032877,2]
[312531547,1705944643658,-500.0,0.00032877,2]
[312531548,1705944643667,-174.0624444,0.00032877,2]
[312531549,1705944643676,-200.87737648,0.00033,2]
[312531550,1705944643685,-550.0,0.00033,3]
[312531551,1705944643694,-305.23,0.00033165,2]
[312531552,1705944643703,-504.98,0.00033165,2]
[312531553,1705944643712,-19136.40404097,0.000335,4]
[312531554,1705944643722,-305.23,0.00033526,2]
[312531555,1705944644024,-504.98,0.00033526,2]
[312531556,1705944644046,-8158.79078493,0.00033787,2]
[312531557,1705944644055,-153.84,0.0003379,2]
[312531558,1705944644065,-153.37666056,0.0003383,2]
[312531559,1705944644075,-305.23,0.00033886,2]
[312531560,1705944644084,-504.98,0.00033886,2]
[312531561,1705944644093,-506.61948755,0.00034,4]
[312531562,1705944644103,-191.31861795,0.00034,4]
[312531563,1705944644112,-500.0,0.00034,2]
[312531564,1705944644123,-1000.0,0.00034,4]
[312531565,1705944644133,-2023.76063496,0.00034,2]
[312531566,1705944644143,-3898.60781039,0.00034,2]
[312531567,1705944644154,-1000.0,0.00034207,2]
[312531568,1705944644163,-305.23,0.00034247,2]
[312531569,1705944644173,-504.98,0.00034247,2]
[312531570,1705944644182,-539.0,0.00034503,5]
[312531571,1705944644191,-328.557451,0.0003452,2]
[312531572,1705944644201,-153.84,0.00034703,2]
[312531573,1705944644214,-683.75,0.00034703,2]
[312531574,1705944644224,-492.836176,0.00034794,2]
[312531575,1705944644236,-8965.15292614,0.000349,4]
[312531576,1705944644246,-5934.94239918,0.000349,2]
[312531577,1705944644255,-5934.94239918,0.000349,2]
[312531578,1705944644265,-5934.94239918,0.000349,2]
[312531579,1705944644274,-5934.94239918,0.000349,2]
[312531580,1705944644284,-5934.94239918,0.000349,2]
[312531581,1705944644295,-5934.94239918,0.000349,2]
[312531582,1705944644304,-5934.94239918,0.000349,2]
[312531583,1705944644313,-5934.94239918,0.000349,2]
[312531584,1705944644323,-214.2,0.00034906,2]
[312531585,1705944644333,-657.114902,0.00034931,2]
[312531586,1705944644342,-185.92717611,0.00035,4]
[312531587,1705944644351,-448.45815072,0.00035,4]
[312531588,1705944644361,-23510.46100162,0.00035,4]
[312531589,1705944644371,-620.26980574,0.00035,4]
[312531590,1705944644381,-155.0,0.00035,2]
[312531591,1705944644392,-236.22564574,0.00035,2]
[312531592,1705944644401,-2007.10266469,0.00035,2]
[312531593,1705944644411,-1769.45700336,0.00035,2]
[312531594,1705944644421,-600.0,0.00035,3]
[312531595,1705944644430,-1887.84670788,0.00035,2]
[312531596,1705944644440,-25356.75977333,0.00035,2]
[312531597,1705944644450,-821.393627,0.00035068,2]
[312531598,1705944644459,-1149.951078,0.00035342,2]
[312531599,1705944644469,-5934.94239918,0.00035436,2]
[312531600,1705944644478,-150.0,0.00035616,2]
[312531601,1705944644488,-300.0,0.00035616,7]
[312531602,1705944644498,-450.0,0.00035616,12]
[312531603,1705944644507,-300.0,0.00035616,17]
[312531604,1705944644516,-500.0,0.00035616,2]
[312531605,1705944644525,-500.0,0.00035616,2]
[312531606,1705944644535,-500.0,0.00035616,2]
[312531607,1705944644544,-500.0,0.00035616,2]
[312531608,1705944644553,-500.0,0.00035616,2]
[312531609,1705944644562,-500.0,0.00035616,2]
[312531610,1705944644571,-500.0,0.00035616,2]
[312531611,1705944644581,-500.0,0.00035616,2]
[312531612,1705944644591,-500.0,0.00035616,2]
[312531613,1705944644600,-500.0,0.00035616,2]
[312531614,1705944644611,-500.0,0.00035616,2]
[312531615,1705944644621,-500.0,0.00035616,2]
[312531616,1705944644631,-500.0,0.00035616,2]
[312531617,1705944644641,-500.0,0.00035616,2]
[312531618,1705944644651,-500.0,0.00035616,2]
[312531619,1705944644662,-500.0,0.00035616,2]
[312531620,1705944644671,-500.0,0.00035616,2]
[312531621,1705944644681,-500.0,0.00035616,2]
[312531622,1705944644690,-500.0,0.00035616,2]
[312531623,1705944644699,-500.0,0.00035616,2]
[312531624,1705944644709,-153.84,0.00035616,2]
[312531625,1705944644718,-487.12,0.000357,2]
[312531626,1705944644727,-301.66702114,0.0003591,5]
[312531627,1705944644738,-256.2143402,0.00036,4]
[312531628,1705944644747,-193.59,0.000362,3]
[312531629,1705944644756,-193.59,0.000362,3]
[312531630,1705944644765,-193.59,0.000362,3]
[312531631,1705944644774,-193.59,0.000362,3]
[312531632,1705944644783,-193.59,0.000362,3]
[312531633,1705944644793,-193.59,0.000362,3]
[312531634,1705944644802,-193.59,0.000362,3]
[312531635,1705944644811,-193.59,0.000362,3]
[312531636,1705944644821,-193.59,0.000362,3]
[312531637,1705944644830,-193.59,0.000362,3]
[312531638,1705944644839,-193.59,0.000362,3]
[312531639,1705944644849,-193.59,0.000362,3]
[312531640,1705944644859,-193.59,0.000362,3]
[312531641,1705944644868,-193.59,0.000362,3]
[312531642,1705944644878,-193.59,0.000362,3]
[312531643,1705944644888,-193.59,0.000362,3]
[312531644,1705944644897,-193.59,0.000362,3]
[312531645,1705944644907,-193.59,0.000362,3]
[312531646,1705944644917,-193.59,0.000362,3]
[312531647,1705944644926,-193.59,0.000362,3]
[312531648,1705944644935,-157.71,0.000362,3]
[312531649,1705944644945,-157.71,0.000362,3]
[312531650,1705944644955,-152.17,0.000362,3]
[312531651,1705944644964,-152.17,0.000362,3]
[312531652,1705944644973,-152.17,0.000362,3]
[312531653,1705944644983,-12698.63,0.00036261,2]
[312531654,1705944644994,-12804.56,0.00036261,2]
[312531655,1705944645003,-288.91718703,0.00036338,2]
[312531656,1705944645013,-155.42,0.00036438,2]
[312531657,1705944645022,-153.84,0.0003653,2]
[312531658,1705944645031,-153.37666056,0.00036587,2]
[312531659,1705944645041,-473.12,0.00036613,15]
[312531660,1705944645051,-158.50125027,0.0003668,30]
[312531661,1705944645060,-269684.7911249,0.00036775,2]
[312531662,1705944645069,-544124.66250436,0.000368,2]
[312531663,1705944645078,-448.71520954,0.00036999,4]
[312531664,1705944645088,-500.0,0.00036999,4]
[312531665,1705944645099,-316.2843657,0.00036999,4]
[312531666,1705944645108,-500.0,0.00036999,4]
[312531667,1705944645118,-217.94767672,0.00036999,4]
[312531668,1705944645127,-412.30062562,0.00036999,4]
[312531669,1705944645136,-442.65212814,0.00037,4]
[312531670,1705944645146,-700.0,0.00037,2]
[312531671,1705944645155,-650.0,0.00037,3]
[312531672,1705944645165,-5934.94239918,0.00037015,2]
[312531673,1705944645174,-214.2,0.0003717,2]
[312531674,1705944645184,-167.01,0.00037289,2]
[312531675,1705944645194,-500.0,0.000374,7]
[312531676,1705944645204,-153.84,0.00037443,2]
[312531677,1705944645216,-162.0,0.0003777,2]
[312531678,1705944645229,-2566.99,0.00037808,2]
[312531679,1705944645241,-718.78,0.00037808,2]
[312531680,1705944645251,-239.59,0.00037808,2]
[312531681,1705944645262,-200.0,0.0003789,7]
[312531682,1705944645272,-150.0,0.00037899,2]
[312531683,1705944645283,-150.0,0.00037899,2]
[312531684,1705944645293,-683.75,0.000379,2]
[312531685,1705944645303,-25356.75977333,0.000379,2]
[312531686,1705944645313,-690140.538501,0.000379,3]
[312531687,1705944645323,-8158.79078493,0.00037997,2]
[312531688,1705944645332,-108733.96190574,0.00038,4]
[312531689,1705944645342,-519.0,0.00038,2]
[312531690,1705944645352,-172.42704873,0.00038008,2]
[312531691,1705944645362,-172.42704873,0.00038008,2]
[312531692,1705944645371,-172.42704873,0.00038008,2]
[312531693,1705944645381,-75000.0,0.00038027,15]
[312531694,1705944645391,-947.0,0.00038131,2]
[312531695,1705944645400,-1030.0,0.00038131,2]
[312531696,1705944645411,-213.673,0.00038131,2]
[312531697,1705944645421,-1233.0,0.00038131,2]
[312531698,1705944645431,-1250.0,0.00038131,2]
[312531699,1705944645441,-153.84,0.00038356,2]
[312531700,1705944645450,-150.14,0.00038356,2]
[312531701,1705944645460,-21974.14,0.00038356,2]
[312531702,1705944645469,-487.12,0.000384,2]
[312531703,1705944645479,-2302.23755944,0.000385,7]
[312531704,1705944645490,-5934.94239918,0.00038593,2]
[312531705,1705944645499,-23714.22665803,0.000387,2]
[312531706,1705944645509,-71472.15133502,0.0003888,2]
[312531715,1705944645877,-846.35319867,0.0003888,2]
[312531716,1705944645887,-72318.50453363,0.0003888,2]
[312531717,1705944645896,-7870.72634515,0.0003888,2]
[312531718,1705944645916,-1242.08461943,0.0003888,2]
[312531719,1705944645949,-292.53131217,0.0003888,2]
[312531720,1705944645981,-2436.84,0.0003888,2]
[312531723,1705944646785,-0.01054987,0.00022902,2]
[312531724,1705944646801,-171.59274874,0.00022902,2]
[312531725,1705944646811,-469.19228122,0.00023288,2]
[312531726,1705944646820,-500.0,0.00023288,2]
[312531727,1705944646830,-390.81864366,0.00023288,2]
[312531728,1705944646839,-567.66,0.00025866,2]
[312531729,1705944646850,-567.66,0.00029099,2]
[312531730,1705944646861,-500.0,0.00036999,7]
[312531731,1705944646871,-168.11398274,0.00036999,7]
[312531732,1705944646881,-824.33060453,0.0003888,2]
[312531733,1705944647227,-567.66,0.00032332,2]
[312531734,1705944647236,-567.66,0.00035565,2]
[312531735,1705944647245,-319.0,0.00038131,2]
[312531736,1705944647254,-405.15361438,0.00038799,2]
[312531737,1705944647266,-162.50638562,0.00038799,2]
[312531738,1705944647277,-2793.48095255,0.0003888,2]
[312531739,1705944647324,-361.37437198,0.0003888,2]
[312531740,1705944647806,-892.0,0.00038323,2]
[312531741,1705944647816,-6360.67994397,0.0003888,2]
[312531742,1705944647840,-813.26,0.0003888,2]
[312531743,1705944647856,-1480.33676909,0.0003888,2]
[312531744,1705944647869,-409.248,0.0003888,2]
[312531745,1705944652508,517.32466767,0.00020983,2]
[312531746,1705944652688,5937.54888629,0.00020983,2]
[312531748,1705944687587,198.12046038,0.00020983,2]
[312531749,1705944696460,155.0,0.00020983,2]
[312531750,1705944698854,183.93374313,0.00020983,2]
[312531751,1705944699737,3207.3814279,0.00020983,2]
[312531752,1705944701274,532.13205427,0.00020983,2]
[312531753,1705944701317,257.10960534,0.00020983,2]
[312531754,1705944707121,155.31524812,0.00020983,2]
[312531756,1705945000028,807.4400119,0.00020983,2]
[312531757,1705945018015,807.4400119,0.00020983,2]
[312531758,1705945032025,807.4400119,0.00020983,2]
[312531759,1705945052033,807.4400119,0.00020983,2]
[312531760,1705945075659,807.4400119,0.00020983,2]
[312531761,1705945096226,807.4400119,0.00020983,2]
[312531762,1705945115660,807.4400119,0.00020983,2]
[312531763,1705945135660,807.4400119,0.00020983,2]
[312531764,1705945155666,926.4184248,0.00020983,2]
[312531765,1705945366291,-171.60329861,0.00021162,2]
[312531766,1705945366318,-2622.16034741,0.00021163,2]
[312531767,1705945366344,-488.77193343,0.00021164,2]
[312531768,1705945366368,-164.10212241,0.00021991,2]
[312531769,1705945366393,-499.99,0.00021993,2]
[312531770,1705945366417,-8053.37229814,0.00021993,2]
[312531776,1705945764087,-171.60329861,0.00021992,2]
[312531777,1705945764106,-4087.01776027,0.00021992,2]
[312531778,1705945764124,-1946.61770186,0.00021993,2]
[312531779,1705945764142,-156.03680799,0.00022,2]
[312531780,1705945764166,-189.36506891,0.00022542,2]
[312531807,1705945833594,-1004.16821473,0.00021893,2]
[312531808,1705945833769,-1587.33948527,0.00021893,2]
[312531809,1705945833779,-171.60329861,0.00022541,2]
[312531810,1705945833788,-468.30721612,0.00022542,2]
[312531811,1705945833800,-62337.32771497,0.00022542,2]
[312531812,1705945833810,-1000.0,0.0002257,2]
[312531813,1705945833819,-860.79169073,0.00022902,2]
[312531814,1705945833828,-320.98865001,0.0002291,2]
[312531815,1705945833837,-162.50456344,0.00022988,2]
[312531816,1705945833847,-242.15051976,0.00022988,2]
[312531817,1705945833857,-47659.05666752,0.00022988,2]
[312531818,1705945833865,-239.68782377,0.0002299,2]
[312531819,1705945833875,-239.68782377,0.0002299,2]
[312531820,1705945833884,-239.68782377,0.0002299,2]
[312531821,1705945833894,-1000.0,0.00022999,2]
[312531822,1705945833903,-150.0,0.00022999,2]
[312531823,1705945833913,-150.0,0.00022999,2]
[312531824,1705945833921,-150.0,0.00022999,2]
[312531825,1705945833930,-150.0,0.00022999,2]
[312531826,1705945833939,-150.0,0.00022999,2]
[312531827,1705945833947,-150.0,0.00022999,2]
[312531828,1705945833956,-150.0,0.00022999,2]
[312531829,1705945833966,-150.0,0.00022999,2]
[312531830,1705945833977,-150.0,0.00022999,2]
[312531831,1705945833986,-150.0,0.00022999,2]
[312531832,1705945833995,-150.0,0.00022999,2]
[312531833,1705945834004,-150.0,0.00022999,2]
[312531834,1705945834013,-709382.74853131,0.00023,2]
[312531835,1705945834024,-2319.75960606,0.00023,2]
[312531836,1705945834131,-5574.74178108,0.00023,2]
[312531837,1705945834142,-8363.34399999,0.00023,2]
[312531838,1705945834164,-730.01,0.00023,2]
[312531839,1705945834175,-824.0,0.00023,2]
[312531840,1705945834186,-3485.27784583,0.00023,2]
[312531860,1705945838790,-3020.8532569,0.00023,2]
[312531861,1705945838848,-1823.453,0.00023,2]
[312531862,1705945839072,-78605.22353711,0.00023,2]
[312532028,1705945840861,-2207.04241876,0.00023,2]
[312532030,1705945840874,-462.64967949,0.00023,2]
[312532033,1705945840894,-307769.85099016,0.00023,2]
[312532036,1705945840905,-1467.0289,0.00023,2]
[312532079,1705945841324,-261.355,0.00023,2]
[312532081,1705945841337,-1161.44721077,0.00023,2]
[312532089,1705945841403,-41422.72480612,0.00023,2]
[312532094,1705945841439,-728.01,0.00023,2]
[312532096,1705945841450,-553.27,0.00023,2]
[312532099,1705945841462,-184220.43479307,0.00023,2]
[312532101,1705945841474,-8398.1628,0.00023,2]
[312532103,1705945841486,-358.20367404,0.00023,2]
[312532105,1705945841498,-8652.03060689,0.00023,2]
[312532108,1705945841509,-775.78394648,0.00023,2]
[312532151,1705945843242,-2134.70402149,0.00023,2]
[312532152,1705945843352,-1077.19,0.00023,2]
[312532153,1705945843363,-606.88645084,0.00023,2]
[312532154,1705945843412,-16420.39808556,0.00023,2]
[312532155,1705945843424,-1450.54990107,0.00023,2]
[312532156,1705945843486,-78.82177484,0.00023,2]
[312532157,1705945843501,-1253.71297659,0.00023,2]
[312532158,1705945843525,-1579.64302071,0.00023,2]
[312532159,1705945843537,-21185.48947632,0.00023,2]
[312532160,1705945843549,-274.27926531,0.00023,2]
[312532177,1705945846348,-980.0105601,0.00023,2]
[312532178,1705945846410,-9859.45140298,0.00023,2]
[312532183,1705945846768,-646.33451275,0.00023,2]
[312532184,1705945846781,-5090.62475993,0.00023,2]
[312532185,1705946054566,156.07370626,0.0002,2]
[312532186,1705946084982,808.32,0.00031,120]
[312532243,1705946452189,-171.60329861,0.00021597,2]
[312532244,1705946452211,-155.0,0.00021597,2]
[312532245,1705946452233,-2613.94285085,0.00021598,2]
[312532246,1705946452253,-767.2821241,0.00021598,2]
[312532247,1705946452275,-218.13979493,0.00021599,2]
[312532248,1705946452296,-364.35538868,0.00021599,2]
[312532249,1705946452316,-1289.67654283,0.000216,2]
[312532254,1705946623060,188.35,0.00019535,2]
[312532255,1705946652319,151.32,0.00026795,120]
[312532256,1705946715749,235.48094785,0.00020688,2]
[312532257,1705946737185,-150.0,0.00021412,2]
[312532258,1705946737204,-155.0,0.00021433,2]
[312532259,1705946737225,-171.60329861,0.00021434,2]
[312532260,1705946737245,-151.32,0.00021436,2]
[312532261,1705946737265,-1459.12770001,0.00021447,2]
[312532262,1705946845140,-150.16548241,0.00021447,2]
[312532263,1705946847130,-378.96401844,0.00021447,2]
[312532264,1705946974952,162.42493963,0.00018398,2]
[312532265,1705946974972,156.04897416,0.00018398,2]
[312532266,1705946974997,43.17629761,0.00018398,2]
[312532267,1705947009945,6089.46292903,0.00018398,2]
[312532268,1705947011874,1278.63376419,0.00018398,5]
[312532269,1705947026121,6089.46292903,0.00018398,2]
[312532273,1705947032353,-261.15,0.00021314,2]
[312532274,1705947032362,-171.60329861,0.00021368,2]
[312532275,1705947032371,-395.48650266,0.00021368,2]
[312532276,1705947032381,-2450.50001164,0.00021369,2]
[312532277,1705947032411,-907.94,0.00021369,2]
[312532278,1705947032423,-20541.55998836,0.00021369,2]
[312532279,1705947032432,-1113.81,0.00021401,2]
[312532280,1705947032442,-540.87229999,0.00021447,2]
[312532281,1705947032452,-250.0,0.00021447,2]
[312532282,1705947032466,-300.0,0.00021459,2]
[312532283,1705947032476,-470.36,0.0002146,2]
[312532284,1705947032485,-500.0,0.00021543,2]
[312532285,1705947032495,-455.98,0.00021543,2]
[312532286,1705947032505,-806.19,0.00021585,2]
[312532287,1705947032514,-2089.59,0.00021585,2]
[312532288,1705947032524,-689.77,0.00021644,2]
[312532289,1705947032534,-159.87,0.00021645,2]
[312532290,1705947032543,-157.95,0.00021731,2]
[312532291,1705947032553,-2832.47886571,0.00021749,2]
[312532292,1705947032594,-2220.8144468,0.00021749,2]
[312532296,1705947032941,-1106.375,0.00021749,2]
[312532297,1705947032953,-889.0482526,0.00021749,2]
[312532298,1705947032964,-188.35,0.00021799,2]
[312532299,1705947032976,-159.04,0.00021817,2]
[312532300,1705947032986,-157.95,0.00021818,2]
[312532301,1705947032995,-181.58,0.00021827,2]
[312532302,1705947033005,-157.95,0.00021905,2]
[312532303,1705947033014,-92.48860828,0.00021918,2]
[312532304,1705947033026,-157.51139172,0.00021918,2]
[312532305,1705947033035,-163.94,0.00021936,2]
[312532306,1705947033045,-157.95,0.00021992,2]
[312532307,1705947033054,-386.21860828,0.00021999,2]
[312532308,1705947033073,-6.24968018,0.00021999,2]
[312532309,1705947033082,-1042.70064617,0.00022,2]
[312532310,1705947033091,-1028.64008496,0.00022043,2]
[312532311,1705947033858,1278.63376419,0.00018398,5]
[312532312,1705947038329,-318.70188704,0.00022043,2]
[312532313,1705947038339,-108.74161296,0.00022078,2]
[312532314,1705947038351,-283.7266755,0.00022078,2]
[312532315,1705947038361,-157.95,0.0002208,2]
[312532316,1705947038370,-1000.0,0.00022097,2]
[312532317,1705947038380,-157.95,0.00022167,2]
[312532318,1705947038390,-157.95,0.00022254,2]
[312532319,1705947038400,-300.0,0.000223,8]
[312532320,1705947038410,-1117.6393,0.00022306,2]
[312532321,1705947038421,-733.09095357,0.00022308,2]
[312532322,1705947038432,-157.95,0.00022341,2]
[312532323,1705947038442,-600.0,0.000224,8]
[312532324,1705947038456,-1347.341972,0.00022413,2]
[312532325,1705947038468,-157.95,0.00022428,2]
[312532326,1705947038479,-689.77,0.00022445,2]
[312532327,1705947038490,-1347.341972,0.00022479,2]
[312532328,1705947038500,-14334.41220479,0.0002249,5]
[312532329,1705947038511,-900.0,0.000225,8]
[312532330,1705947038521,-157.95,0.00022515,2]
[312532331,1705947038531,-1200.0,0.000226,8]
[312532332,1705947038541,-157.95,0.00022602,2]
[312532333,1705947038551,-56325.476,0.00022668,2]
[312532334,1705947038561,-157.95,0.00022689,2]
[312532335,1705947038571,-1500.0,0.000227,8]
[312532336,1705947038581,-15984.62931762,0.00022768,2]
[312532337,1705947038592,-277.72776106,0.00022768,2]
[312532338,1705947038602,-381.35,0.00022768,2]
[312532339,1705947038612,-157.95,0.00022776,2]
[312532340,1705947038622,-300.0,0.000228,8]
[312532341,1705947038632,-157.95,0.00022863,2]